bitfinex-derivatives/quotes_SOLF0:USTF0_20250818
["timestamp","ask_amount","ask_price","bid_price","bid_amount"]
[1755544228058,4.53259101,183.86,183.8,2.93]
[1755544228258,135.38,183.88,183.8,2.93]
[1755544228458,4.5304552,183.87,183.8,2.93]
[1755544228656,135.38,183.88,183.8,2.93]
[1755544228858,4.53045444,183.87,183.8,2.93]
[1755544229049,135.38,183.88,183.8,2.93]
[1755544229253,4.52877231,183.87,183.8,2.93]
[1755544229556,135.32,183.92,183.84,2.93]
[1755544229756,4.52077165,183.91,183.79,5.98075273]
[1755544229957,4.58077165,183.9,183.8,2.93]
[1755544230259,4.52077165,183.89,183.8,2.93]
[1755544230458,4.52077165,183.88,183.8,2.93]
[1755544230657,0.06,183.9,183.8,2.93]
[1755544230960,0.06,183.95,183.81,2.93]
[1755544231158,0.06,183.92,183.81,2.93]
[1755544231463,0.06,183.88,183.7,2.93]
[1755544231660,0.06,183.84,183.7,2.93]
[1755544231958,0.06,183.82,183.7,2.93]
[1755544232259,4.5199344,183.81,183.7,2.93]
[1755544232457,0.04086763,183.79,183.75,0.03850375]
[1755544232659,0.10086763,183.79,183.75,0.03850375]
[1755544232857,0.06,183.78,183.75,0.03850375]
[1755544233257,0.04086763,183.79,183.75,0.03850375]
[1755544233461,0.06,183.76,183.75,0.03850375]
[1755544235165,0.06,183.76,183.67,2.93]
[1755544235365,4.56567865,183.76,183.67,2.93]
[1755544235667,0.06,183.76,183.67,2.93]
[1755544236058,0.06,183.76,183.62,5.4434]
[1755544236362,0.06,183.76,183.63,2.93]
[1755544236559,0.03805869,183.73,183.63,2.93]
[1755544238265,0.03805869,183.73,183.64,2.93]
[1755544238465,0.03805869,183.73,183.64,8.91075273]
[1755544238768,0.03805869,183.73,183.65,2.93]
[1755544239164,5.98075273,183.78,183.65,2.93]
[1755544239568,0.03931684,183.71,183.65,2.93]
[1755544240065,0.03931684,183.71,183.6,2.93]
[1755544240569,5.98075273,183.74,183.6,2.93]
[1755544240867,0.04114246,183.67,183.6,2.93]
[1755544242464,0.04114246,183.67,183.58,5.98075273]
[1755544242667,0.04114246,183.67,183.62,2.93]
[1755544242868,136.38,183.75,183.62,2.93]
[1755544243072,136.38,183.75,183.65,5.98075273]
[1755544243368,136.38,183.75,183.64,2.93]
[1755544243672,136.44,183.75,183.64,2.93]
[1755544246571,136.44,183.75,183.61,5.98075273]
[1755544246572,0.06,183.74,183.59,2.93]
[1755544247368,0.06,183.74,183.59,8.3743]
[1755544247967,0.06,183.74,183.59,2.93]
[1755544248570,0.06,183.74,183.62,2.93]
[1755544249376,0.06,183.74,183.57,5.98075273]
[1755544249669,0.06,183.74,183.58,2.93]
[1755544250272,0.06,183.74,183.58,8.3744]
[1755544250468,0.06,183.72,183.58,2.93]
[1755544250965,0.06,183.72,183.58,8.3746]
[1755544251870,0.06,183.72,183.6,2.93]
[1755544252174,0.06,183.72,183.63,0.03705456]
[1755544253675,0.0945282,183.69,183.63,0.03705456]
[1755544254476,3.80430014,183.67,183.63,0.03705456]
[1755544254674,3.80430014,183.64,183.63,0.03705456]
[1755544254869,3.86430014,183.64,183.55,2.87]
[1755544255172,136.38,183.66,183.5,2.87]
[1755544255173,3.80430014,183.61,183.5,2.87]
[1755544255573,3.80430014,183.61,183.5,6.67430014]
[1755544255771,3.80430014,183.61,183.51,2.87]
[1755544256179,0.03822865,183.57,183.51,2.87]
[1755544256774,0.03822865,183.57,183.51,8.86899957]
[1755544256976,0.03822865,183.57,183.54,2.87]
[1755544257172,0.03822865,183.57,183.56,2.87]
[1755544257370,0.03822865,183.57,183.51,2.87]
[1755544257866,0.03822865,183.57,183.5,5.99899957]
[1755544258072,0.03822865,183.57,183.51,2.87]
[1755544258272,0.02,183.63,183.51,8.3166]
[1755544258573,0.02,183.63,183.52,2.87]
[1755544258574,0.03856082,183.56,183.52,2.87]
[1755544258871,0.03856082,183.56,183.52,5.4462]
[1755544259077,0.03856082,183.56,183.55,2.87]
[1755544260375,365.74,183.66,183.55,3.41]
[1755544260570,365.74,183.66,183.56,5.99899957]
[1755544260771,365.74,183.66,183.57,2.87]
[1755544261680,365.74,183.66,183.6,0.03567605]
[1755544261971,136.92,183.69,183.6,2.90567605]
[1755544262480,0.06,183.68,183.6,2.90567605]
[1755544263981,0.06,183.68,183.6,0.03567605]
[1755544265279,136.92,183.69,183.6,0.03567605]
[1755544265280,0.06,183.66,183.6,0.03567605]
[1755544266285,54.47002622,183.65,183.6,0.03567605]
[1755544266583,0.06,183.62,183.6,0.03567605]
[1755544266786,0.06,183.61,183.6,0.03567605]
[1755544268077,4.54162042,183.61,183.6,0.03567605]
[1755544268277,0.101243,183.62,183.6,0.03567605]
[1755544268477,0.041243,183.62,183.6,0.03567605]
[1755544268678,0.041243,183.62,183.61,2.87]
[1755544268989,0.06,183.61,183.6,0.03567605]
[1755544269283,4.54565459,183.61,183.6,0.03567605]
[1755544271982,141.40565459,183.61,183.6,0.03567605]
[1755544272188,141.40565459,183.61,183.53,2.87]
[1755544272383,4.48565459,183.6,183.45,5.99899957]
[1755544272588,4.51565459,183.59,183.49,2.87]
[1755544272796,4.48565459,183.58,183.49,2.87]
[1755544273000,4.48565459,183.57,183.49,2.87]
[1755544273190,4.48565459,183.56,183.49,2.87]
[1755544273391,4.52287351,183.55,183.49,2.87]
[1755544273597,0.03721892,183.55,183.49,2.87]
[1755544273796,4.49878263,183.54,183.49,2.87]
[1755544273990,4.49878263,183.53,183.49,2.87]
[1755544274197,4.49878263,183.52,183.49,2.87]
[1755544274398,4.50073163,183.51,183.43,2.87]
[1755544274595,0.03,183.54,183.43,2.87]
[1755544274894,4.50054985,183.53,183.43,2.87]
[1755544275094,5.99899957,183.58,183.38,8.86899957]
[1755544275095,0.04166464,183.5,183.38,8.86899957]
[1755544275297,4.50054985,183.49,183.39,2.87]
[1755544275502,4.50054985,183.48,183.41,5.4495]
[1755544275701,136.82,183.53,183.42,2.87]
[1755544275891,4.5009335,183.52,183.42,2.87]
[1755544276096,4.5009335,183.51,183.42,2.87]
[1755544276295,4.5009335,183.5,183.42,2.87]
[1755544276497,4.50574424,183.49,183.42,2.87]
[1755544276902,4.50574424,183.48,183.42,2.87]
[1755544277100,136.82,183.53,183.42,2.87]
[1755544277395,4.5054577,183.52,183.42,2.87]
[1755544277593,136.82,183.53,183.42,2.87]
[1755544277594,4.5054577,183.51,183.42,2.87]
[1755544277798,4.5054577,183.5,183.42,2.87]
[1755544278000,0.07,183.48,183.35,5.4512]
[1755544278204,4.5054577,183.47,183.38,2.87]
[1755544278394,4.5054577,183.46,183.38,2.87]
[1755544278705,6.06899957,183.52,183.35,2.87]
[1755544278899,4.50515259,183.51,183.35,2.87]
[1755544279097,4.50515259,183.5,183.39,2.87]
[1755544279410,4.50515259,183.49,183.39,2.87]
[1755544279703,4.57515259,183.48,183.39,2.87]
[1755544279905,4.50515259,183.47,183.39,2.87]
[1755544280106,4.50515259,183.46,183.39,2.87]
[1755544280303,0.07,183.48,183.39,2.87]
[1755544280506,4.49976524,183.47,183.39,2.87]
[1755544280806,4.49976524,183.46,183.39,2.87]
[1755544281009,0.07,183.48,183.39,2.87]
[1755544281313,4.49997691,183.47,183.39,2.87]
[1755544281499,4.49997691,183.46,183.39,2.87]
[1755544281698,4.49997691,183.45,183.39,2.87]
[1755544281898,4.49997691,183.44,183.39,2.87]
[1755544282194,5.99899957,183.46,183.31,5.99899957]
[1755544282396,0.07,183.42,183.29,2.95]
[1755544282603,4.49340417,183.41,183.29,2.95]
[1755544282805,4.49340417,183.4,183.29,2.95]
[1755544283008,0.07,183.42,183.29,2.95]
[1755544283309,4.49286349,183.41,183.29,2.95]
[1755544283606,0.07,183.42,183.32,2.95]
[1755544285007,4.48544678,183.41,183.32,2.95]
[1755544285304,0.07,183.42,183.32,2.95]
[1755544285502,0.07,183.42,183.26,2.95]
[1755544285709,0.07,183.42,183.29,2.95]
[1755544286201,0.07,183.42,183.32,0.03577803]
[1755544286407,0.03891965,183.37,183.32,0.03577803]
[1755544286600,0.03891965,183.37,183.32,2.98577803]
[1755544286910,0.10891965,183.37,183.32,2.98577803]
[1755544287206,0.10891965,183.37,183.32,0.03577803]
[1755544287418,0.07,183.36,183.32,0.03577803]
[1755544287612,0.03891965,183.37,183.32,0.03577803]
[1755544288311,0.03891965,183.37,183.34,2.95]
[1755544288511,0.03891965,183.37,183.32,0.03577803]
[1755544288709,0.03891965,183.37,183.33,5.4518]
[1755544288903,0.03891965,183.37,183.36,2.95]
[1755544290308,5.99899957,183.48,183.36,2.95]
[1755544290514,144.18899957,183.48,183.36,2.95]
[1755544290709,138.19,183.48,183.36,2.95]
[1755544290903,138.19,183.48,183.35,5.99899957]
[1755544290904,138.19,183.48,183.39,2.95]
[1755544291109,138.08,183.48,183.39,2.95]
[1755544291810,138.08,183.48,183.42,0.03908842]
[1755544292209,144.07899957,183.48,183.42,0.03908842]
[1755544292712,0.11,183.46,183.42,0.03908842]
[1755544292910,144.07899957,183.48,183.42,0.03908842]
[1755544293117,4.4758855,183.47,183.42,0.03908842]
[1755544293418,6.10899957,183.48,183.42,0.03908842]
[1755544293606,138.31,183.47,183.42,0.03908842]
[1755544294011,366.19,183.51,183.43,2.95]
[1755544294309,504.39,183.51,183.43,2.95]
[1755544295012,504.28,183.51,183.43,2.95]
[1755544297317,504.28,183.51,183.43,8.3991]
[1755544297517,504.28,183.51,183.43,2.95]
[1755544297914,0.11,183.55,183.43,2.95]
[1755544298115,0.03742211,183.49,183.44,2.95]
[1755544298317,0.03742211,183.49,183.43,5.99899957]
[1755544298318,0.03742211,183.49,183.45,5.4485]
[1755544298713,0.03742211,183.49,183.47,2.95]
[1755544299115,0.03742211,183.49,183.45,2.98673754]
[1755544301418,0.11,183.48,183.45,0.03673754]
[1755544302624,0.03742211,183.49,183.45,0.03673754]
[1755544303116,0.11,183.46,183.45,0.03673754]
[1755544303314,138.05,183.46,183.45,0.03673754]
[1755544304915,137.94,183.46,183.45,0.03673754]
[1755544305315,138.05,183.46,183.45,0.03673754]
[1755544306724,137.94,183.46,183.45,0.03673754]
[1755544307625,138.05,183.46,183.45,0.03673754]
[1755544309725,137.94,183.46,183.45,0.03673754]
[1755544310026,137.7,183.46,183.45,0.03673754]
[1755544311728,137.81,183.46,183.45,0.03673754]
[1755544312029,137.81,183.46,183.35,2.95]
[1755544312030,142.31321449,183.46,183.35,2.95]
[1755544312224,137.81,183.46,183.35,2.95]
[1755544313822,137.6,183.45,183.35,2.95]
[1755544314124,137.6,183.45,183.38,3.0]
[1755544314528,137.6,183.45,183.38,8.4504]
[1755544315521,137.6,183.45,183.39,3.0]
[1755544316421,0.03913999,183.44,183.41,3.0]
[1755544318130,0.03913999,183.44,183.4,0.03738818]
[1755544318324,0.11913999,183.44,183.4,0.03738818]
[1755544318832,0.03913999,183.44,183.4,0.03738818]
[1755544319023,0.03913999,183.44,183.4,3.03738818]
[1755544319825,0.03913999,183.44,183.41,3.0]
[1755544320218,0.03913999,183.44,183.42,3.0]
[1755544320423,137.36,183.52,183.43,3.0]
[1755544320723,4.52322,183.51,183.43,3.0]
[1755544320929,137.28,183.52,183.43,5.99899957]
[1755544321231,4.52441664,183.51,183.44,3.0]
[1755544321530,137.28,183.52,183.48,3.0]
[1755544321827,137.28,183.52,183.49,3.0]
[1755544323417,137.28,183.52,183.46,0.04131045]
[1755544323626,137.28,183.52,183.47,8.99899957]
[1755544323826,7.15815,183.56,183.48,3.0]
[1755544324021,7.15815,183.56,183.51,5.4466]
[1755544324328,7.15815,183.56,183.52,3.0]
[1755544324532,7.15815,183.56,183.52,3.03772312]
[1755544324832,7.15815,183.56,183.53,3.0]
[1755544325228,7.15815,183.56,183.52,0.03772312]
[1755544325525,7.15815,183.56,183.54,3.0]
[1755544326121,7.15815,183.56,183.52,0.03772312]
[1755544326321,0.11,183.55,183.52,0.03772312]
[1755544326918,7.15815,183.56,183.52,0.03772312]
[1755544327931,0.11,183.55,183.52,0.03772312]
[1755544329031,7.15815,183.56,183.53,3.0]
[1755544329424,7.15815,183.56,183.52,0.03772312]
[1755544330422,7.26815,183.56,183.52,0.03772312]
[1755544330625,0.11,183.55,183.52,0.03772312]
[1755544335729,7.15815,183.56,183.52,3.03772312]
[1755544335930,7.15815,183.56,183.53,3.0]
[1755544336235,7.15815,183.56,183.54,3.0]
[1755544336436,7.15815,183.56,183.55,3.0]
[1755544337234,7.15815,183.56,183.52,0.03772312]
[1755544337431,7.15815,183.56,183.53,3.0]
[1755544337631,7.15815,183.56,183.52,0.03772312]
[1755544337836,0.11,183.55,183.52,0.03772312]
[1755544338239,7.15815,183.56,183.52,0.03772312]
[1755544338425,7.15815,183.56,183.52,3.03772312]
[1755544338627,7.15815,183.56,183.53,3.0]
[1755544338832,7.15815,183.56,183.52,0.03772312]
[1755544339036,7.15815,183.56,183.55,3.0]
[1755544339340,7.15815,183.56,183.53,3.0]
[1755544339939,7.15815,183.56,183.54,3.0]
[1755544340433,7.15815,183.56,183.54,5.4457]
[1755544340640,7.15815,183.56,183.55,3.0]
[1755544341539,7.15815,183.56,183.52,5.48402312]
[1755544341734,7.15815,183.56,183.52,0.03772312]
[1755544341939,7.15815,183.56,183.55,3.0]
[1755544342537,7.15815,183.56,183.53,2.93]
[1755544344841,7.15815,183.56,183.52,0.03772312]
[1755544345043,7.15815,183.56,183.53,2.93]
[1755544345648,7.15815,183.56,183.52,3.8444144]
[1755544345846,7.15815,183.56,183.54,2.93]
[1755544346634,7.15815,183.56,183.52,3.8444144]
[1755544346838,7.15815,183.56,183.55,9.25219128]
[1755544347033,7.15815,183.56,183.55,12.18219128]
[1755544347635,3.98815,183.56,183.55,12.18219128]
[1755544348853,136.42,183.64,183.57,5.4447]
[1755544349043,136.42,183.64,183.55,6.73669128]
[1755544349545,136.42,183.64,183.58,0.03598374]
[1755544350649,136.42,183.64,183.58,5.48038374]
[1755544350838,136.42,183.64,183.58,3.84267502]
[1755544351233,50.0,183.72,183.58,3.84267502]
[1755544351234,2.86,183.71,183.61,6.73669128]
[1755544351443,136.34,183.7,183.61,6.73669128]
[1755544351645,6.66669128,183.69,183.58,9.25129128]
[1755544351949,2.86,183.68,183.64,0.04036925]
[1755544352134,3.80669128,183.69,183.64,0.04036925]
[1755544352337,2.86,183.65,183.64,0.04036925]
[1755544354457,2.86,183.65,183.57,2.93]
[1755544355848,2.86,183.65,183.59,0.03988957]
[1755544356550,2.86,183.63,183.59,0.03988957]
[1755544356741,3.80669128,183.64,183.59,0.03988957]
[1755544356942,2.86,183.62,183.59,0.03988957]
[1755544357243,2.86,183.63,183.59,0.03988957]
[1755544358038,3.80669128,183.64,183.59,0.03988957]
[1755544358445,2.86,183.63,183.59,0.03988957]
[1755544358947,3.80669128,183.63,183.59,0.03988957]
[1755544359148,2.86,183.61,183.59,0.03988957]
[1755544359451,139.38,183.6,183.59,0.03988957]
[1755544363866,139.38,183.6,183.51,5.4466]
[1755544364161,4.50474874,183.59,183.48,2.93]
[1755544364457,4.50474874,183.58,183.48,2.93]
[1755544364656,2.86,183.58,183.48,2.93]
[1755544365352,0.0418328,183.55,183.48,2.93]
[1755544365559,136.3,183.54,183.48,2.93]
[1755544365957,136.3,183.54,183.48,8.3775]
[1755544366659,136.3,183.54,183.49,5.4472]
[1755544366857,136.3,183.54,183.51,2.93]
[1755544367061,136.3,183.54,183.52,2.93]
[1755544367256,136.3,183.54,183.53,2.93]
[1755544369349,0.0418328,183.55,183.53,2.93]
[1755544369760,0.0418328,183.55,183.54,2.93]
[1755544370060,0.0418328,183.55,183.54,8.3758]
[1755544370356,136.26,183.58,183.55,3.80669128]
[1755544370554,136.24,183.62,183.57,5.4448]
[1755544370750,136.24,183.62,183.58,2.93]
[1755544371059,139.1,183.62,183.58,2.93]
[1755544371453,139.1,183.62,183.58,2.96547639]
[1755544371653,139.1,183.62,183.58,0.03547639]
[1755544371956,2.86,183.61,183.58,0.03547639]
[1755544372348,3.14,183.61,183.58,0.03547639]
[1755544372654,3.14,183.59,183.58,0.03547639]
[1755544373961,136.24,183.62,183.58,0.03547639]
[1755544374158,3.14,183.59,183.58,0.03547639]
[1755544375764,7.66752853,183.59,183.58,0.03547639]
[1755544376665,3.14,183.58,183.48,2.98]
[1755544376863,6.94669128,183.56,183.48,2.98]
[1755544377366,3.84661664,183.55,183.48,2.98]
[1755544377563,6.94669128,183.56,183.48,2.98]
[1755544377764,3.84667492,183.55,183.48,2.98]
[1755544377958,6.94669128,183.56,183.48,2.98]
[1755544377959,3.1772141,183.53,183.48,2.98]
[1755544378159,136.14,183.52,183.48,2.98]
[1755544379268,136.14,183.52,183.47,5.4479]
[1755544379469,136.14,183.52,183.49,2.98]
[1755544379671,136.14,183.52,183.47,5.4479]
[1755544380064,136.14,183.52,183.48,2.98]
[1755544380262,0.0372141,183.53,183.52,2.98]
[1755544380666,0.0372141,183.53,183.52,8.4264]
[1755544382066,136.12,183.56,183.51,0.03733252]
[1755544382368,136.12,183.56,183.55,2.98]
[1755544383169,136.12,183.56,183.51,5.48383252]
[1755544383170,139.26,183.56,183.51,5.48383252]
[1755544383368,139.26,183.56,183.52,2.98]
[1755544384868,136.12,183.56,183.51,0.03733252]
[1755544385071,3.14,183.53,183.51,0.03733252]
[1755544385277,3.14,183.52,183.51,0.03733252]
[1755544390574,3.14,183.55,183.51,0.03733252]
[1755544390769,3.14,183.56,183.51,0.03733252]
[1755544390969,136.12,183.55,183.52,2.98]
[1755544391571,136.12,183.55,183.51,0.03733252]
[1755544391777,136.12,183.55,183.51,3.01733252]
[1755544392971,136.12,183.55,183.53,2.98]
[1755544393172,136.15647195,183.55,183.52,2.98]
[1755544393370,136.15647195,183.55,183.52,5.4464]
[1755544393575,136.15647195,183.55,183.53,2.98]
[1755544393772,136.15647195,183.55,183.51,0.03733252]
[1755544394079,136.15647195,183.55,183.52,2.98]
[1755544394780,136.15647195,183.55,183.53,2.98]
[1755544395778,136.15647195,183.55,183.51,0.03733252]
[1755544395980,136.15647195,183.55,183.51,3.01733252]
[1755544396176,136.15647195,183.55,183.51,0.03733252]
[1755544396382,136.15647195,183.55,183.53,2.98]
[1755544397275,136.15647195,183.55,183.54,2.98]
[1755544398376,136.15647195,183.55,183.53,2.98]
[1755544398576,136.15647195,183.55,183.53,5.4461]
[1755544398874,136.15647195,183.55,183.53,2.98]
[1755544399273,136.15647195,183.55,183.51,0.03733252]
[1755544399680,3.14,183.54,183.51,0.03733252]
[1755544400175,136.15647195,183.55,183.51,0.03733252]
[1755544400378,3.14,183.52,183.51,0.03733252]
[1755544401482,6.97937904,183.52,183.51,0.03733252]
[1755544402281,3.14,183.52,183.51,0.03733252]
[1755544402580,6.97884559,183.52,183.51,0.03733252]
[1755544402782,3.83884559,183.52,183.51,0.03733252]
[1755544405282,136.15647195,183.55,183.51,0.03733252]
[1755544405485,11.34934785,183.54,183.51,0.03733252]
[1755544405684,3.8386764,183.53,183.51,0.03733252]
[1755544405882,2.88,183.54,183.51,0.03733252]
[1755544406083,3.83870306,183.53,183.51,0.03733252]
[1755544406284,2.88,183.54,183.51,0.03733252]
[1755544406587,3.83864937,183.53,183.51,0.03733252]
[1755544406885,139.03647195,183.55,183.51,0.03733252]
[1755544407087,8.46942216,183.54,183.51,0.03733252]
[1755544407276,3.83868612,183.53,183.51,0.03733252]
[1755544407480,2.88,183.54,183.51,0.03733252]
[1755544407683,2.88,183.52,183.51,0.03733252]
[1755544407881,6.71871252,183.52,183.51,0.03733252]
[1755544408583,2.88,183.54,183.51,0.03733252]
[1755544408789,3.83893506,183.53,183.51,0.03733252]
[1755544408982,139.96316323,183.55,183.51,0.03733252]
[1755544409181,8.47015795,183.54,183.51,0.03733252]
[1755544409391,2.88,183.52,183.51,0.03733252]
[1755544409583,11.35003503,183.52,183.51,0.03733252]
[1755544409783,2.88,183.51,183.44,3.13]
[1755544409989,144.59003503,183.5,183.44,3.13]
[1755544410186,3.83905517,183.49,183.44,3.13]
[1755544410386,2.88,183.48,183.44,3.13]
[1755544411084,2.91782495,183.48,183.44,3.13]
[1755544411283,2.91782495,183.48,183.41,3.13]
[1755544413596,3.83549231,183.47,183.41,3.13]
[1755544413792,2.91782495,183.48,183.41,3.13]
[1755544413988,3.83547837,183.47,183.41,3.13]
[1755544414188,2.91782495,183.48,183.41,3.13]
[1755544414495,3.8343727,183.47,183.41,3.13]
[1755544414693,2.91782495,183.48,183.41,3.13]
[1755544414887,3.834677,183.47,183.41,3.13]
[1755544415091,2.91782495,183.48,183.41,3.13]
[1755544415391,3.83373851,183.47,183.41,3.13]
[1755544415596,2.91782495,183.48,183.41,3.13]
[1755544415798,3.83403636,183.47,183.41,3.13]
[1755544415996,2.91782495,183.48,183.41,3.13]
[1755544416197,3.83386904,183.47,183.41,3.13]
[1755544416412,2.91782495,183.48,183.41,3.13]
[1755544416603,3.83303865,183.47,183.41,3.13]
[1755544416802,2.91782495,183.48,183.41,3.13]
[1755544416803,0.03782495,183.48,183.41,3.13]
[1755544417108,0.03782495,183.48,183.39,3.80669128]
[1755544417303,0.03782495,183.48,183.45,3.13]
[1755544417704,2.91782495,183.48,183.42,3.13]
[1755544417903,2.91782495,183.48,183.39,6.93669128]
[1755544418404,3.8332513,183.47,183.39,12.38679128]
[1755544418602,2.91782495,183.48,183.39,6.93669128]
[1755544418805,3.83323782,183.47,183.39,6.93669128]
[1755544419004,2.91782495,183.48,183.39,3.13]
[1755544419305,3.83381896,183.47,183.39,3.13]
[1755544419506,2.91782495,183.48,183.39,3.13]
[1755544419705,3.83335889,183.47,183.4,5.4498]
[1755544419904,2.91782495,183.48,183.4,5.4498]
[1755544420105,3.83354922,183.47,183.4,5.4498]
[1755544420305,2.91782495,183.48,183.41,8.5795]
[1755544420505,3.83338422,183.47,183.41,8.5795]
[1755544420707,2.88,183.48,183.41,8.5795]
[1755544421011,0.04174197,183.46,183.43,3.13]
[1755544421206,0.04174197,183.46,183.44,3.13]
[1755544421409,2.88,183.48,183.44,3.13]
[1755544421606,2.88,183.52,183.43,3.13]
[1755544421810,0.03990699,183.47,183.41,3.13]
[1755544422212,3.80669128,183.45,183.33,3.13]
[1755544422410,139.97165867,183.44,183.33,6.93669128]
[1755544422613,136.14,183.44,183.34,8.5816]
[1755544422920,136.14,183.44,183.35,3.13]
[1755544423211,0.03467081,183.4,183.34,3.13]
[1755544424312,0.03467081,183.4,183.34,8.5815]
[1755544425313,0.03467081,183.4,183.34,5.4515]
[1755544425516,0.03467081,183.4,183.35,5.4514]
[1755544425710,0.03467081,183.4,183.38,3.13]
[1755544427519,0.03467081,183.4,183.33,3.80669128]
[1755544427715,0.03467081,183.4,183.34,3.13]
[1755544427908,2.91467081,183.4,183.31,3.13]
[1755544428110,2.88,183.4,183.31,3.13]
[1755544428413,4.03811701,183.39,183.31,3.13]
[1755544428615,0.03740964,183.37,183.31,3.13]
[1755544432112,0.03740964,183.37,183.19,10.9122]
[1755544432113,2.98,183.36,183.19,10.9122]
[1755544432422,2.98,183.36,183.27,3.80669128]
[1755544432621,136.16,183.38,183.28,3.02]
[1755544432925,0.03923935,183.33,183.28,3.02]
[1755544433217,0.03923935,183.33,183.32,3.02]
[1755544433415,136.16,183.38,183.32,3.02]
[1755544435709,0.03882111,183.37,183.32,3.02]
[1755544436915,3.01882111,183.37,183.32,3.02]
[1755544437423,0.03882111,183.37,183.31,3.05912868]
[1755544438122,0.03882111,183.37,183.31,8.51152868]
[1755544438715,0.03882111,183.37,183.34,3.02]
[1755544439322,0.03882111,183.37,183.33,3.80669128]
[1755544439524,0.03882111,183.37,183.35,3.02]
[1755544439724,0.03882111,183.37,183.36,8.4712]
[1755544440325,2.98,183.48,183.37,3.02]
[1755544440523,4.03083662,183.47,183.37,3.02]
[1755544440719,4.03083662,183.46,183.4,5.45]
[1755544441017,2.98,183.48,183.4,5.45]
[1755544441218,4.03049253,183.47,183.4,8.47]
[1755544441421,2.98,183.48,183.4,3.02]
[1755544441616,2.98,183.46,183.42,0.03484443]
[1755544441828,139.98669128,183.49,183.42,0.03484443]
[1755544441829,2.98,183.45,183.42,0.03484443]
[1755544442028,2.98,183.44,183.42,0.03484443]
[1755544443627,139.98669128,183.49,183.42,0.03484443]
[1755544443933,3.80669128,183.46,183.42,0.03484443]
[1755544444125,2.98,183.43,183.42,0.03484443]
[1755544444423,7.01325047,183.43,183.42,0.03484443]
[1755544445218,2.98,183.43,183.42,0.03484443]
[1755544445426,2.98,183.46,183.42,0.03484443]
[1755544445630,4.03657541,183.45,183.43,3.02]
[1755544445830,189.98669128,183.49,183.43,3.02]
[1755544446023,8.69331573,183.48,183.42,0.03484443]
[1755544446223,2.98,183.46,183.42,0.03484443]
[1755544446425,4.03647973,183.45,183.42,0.03484443]
[1755544446925,4.03647973,183.45,183.42,3.05484443]
[1755544447127,192.96669128,183.49,183.42,3.05484443]
[1755544447346,4.0382731,183.48,183.42,3.05484443]
[1755544447519,4.0382731,183.47,183.42,3.05484443]
[1755544447725,7.0182731,183.46,183.42,3.05484443]
[1755544448028,4.0382731,183.45,183.43,3.02]
[1755544448220,189.98669128,183.49,183.43,3.02]
[1755544448427,7.01988948,183.48,183.43,3.02]
[1755544448624,4.03988948,183.47,183.43,3.02]
[1755544448826,4.03988948,183.46,183.42,0.03484443]
[1755544449027,186.18,183.49,183.42,0.03484443]
[1755544449028,136.18,183.49,183.42,0.03484443]
[1755544449226,7.02025297,183.48,183.42,0.03484443]
[1755544449433,2.98,183.46,183.42,0.03484443]
[1755544449733,2.98,183.48,183.42,0.03484443]
[1755544450034,4.0412745,183.47,183.43,3.02]
[1755544450234,136.18,183.49,183.43,3.02]
[1755544450529,2.98,183.47,183.43,3.02]
[1755544451332,2.98,183.48,183.42,0.03484443]
[1755544451528,4.04244171,183.47,183.43,3.02]
[1755544451736,2.98,183.48,183.44,3.02]
[1755544452036,4.0424457,183.47,183.44,3.02]